[Event "FIDE WYCC Girls U14 2023"]
[Site "Montesilvano"]
[Date "2023.11.22"]
[Round "9.13"]
[White "Sezdbekova, Aizhan"]
[Black "Avetisyan, Ani"]
[Result "0-1"]
[ECO "B12"]
[WhiteElo "1594"]
[BlackElo "1770"]
[Annotator "NA RC"]
[PlyCount "122"]
[EventDate "2023.11.13"]
[EventType "swiss"]
[EventCountry "ITA"]
[SourceTitle "playchess.com"]
[Source "ChessBase"]
[SourceQuality "1"]
[TimeControl "40/5400+30:1800+30"]

1. e4 {[%emt 0:00:04]} c6 {[%emt 0:00:11]} 2. d4 {[%emt 0:00:14]} d5 {[%emt 0:00:05]} 3. f3 {[%emt 0:00:04]} e6 {[%emt 0:00:07]} 4. Nc3 {[%emt 0:00:22]} Qb6 {[%emt 0:00:10]} 5. Nge2 {[%emt 0:04:13]} Nf6 {[%emt 0:03:33]} 6. Ng3 {[%emt 0:20:08]} Be7 {[%emt 0:10:54]} 7. Rb1 {[%emt 0:02:17]} O-O {[%emt 0:03:23]} 8. Be3 {[%emt 0:05:56]} c5 {[%emt 0:06:40]} 9. Qd2 {[%emt 0:11:09]} Rd8 {[%emt 0:14:43]} 10. e5 {[%emt 0:05:35]} Nfd7 {[%emt 0:02:31]} 11. f4 {[%emt 0:02:59]} Nc6 {[%emt 0:05:19]} 12. Nge2 {[%emt 0:06:20]} Qa5 {[%emt 0:16:56]} 13. a3 {[%emt 0:03:49]} cxd4 {[%emt 0:07:36]} 14. Nxd4 {[%emt 0:00:33]} Nxd4 {[%emt 0:02:28]} 15. Bxd4 {[%emt 0:05:48]} Nf8 {[%emt 0:02:17]} 16. Nb5 {[%emt 0:04:55]} Qxd2+ {[%emt 0:02:15]} 17. Kxd2 {[%emt 0:00:05]} b6 {[%emt 0:01:24]} 18. Nxa7 {[%emt 0:00:21]} Rxa7 {[%emt 0:00:23]} 19. Bxb6 {[%emt 0:00:05]} Rdd7 {[%emt 0:00:19]} 20. Bxa7 {[%emt 0:00:54]} Rxa7 {[%emt 0:00:00]} 21. Bd3 {[%emt 0:02:32]} Nd7 {[%emt 0:02:54]} 22. Rhf1 {[%emt 0:06:41]} h5 {[%emt 0:04:06]} 23. Rf3 {[%emt 0:00:46]} Kf8 {[%emt 0:01:10]} 24. Rh3 {[%emt 0:00:33]} g6 {[%emt 0:03:29]} 25. g4 {[%emt 0:00:21]} h4 {[%emt 0:00:51]} 26. g5 {[%emt 0:00:09]} Ba6 {[%emt 0:00:38]} 27. Bxa6 {[%emt 0:02:52]} Rxa6 {[%emt 0:00:00]} 28. Rxh4 {[%emt 0:00:24]} Nxe5 {[%emt 0:00:33]} 29. Rh3 {[%emt 0:03:56]} Nc4+ {[%emt 0:00:45]} 30. Ke2 {[%emt 0:00:36]} Bd6 {[%emt 0:00:29]} 31. Rf3 {[%emt 0:01:14]} Ke7 {[%emt 0:02:42]} 32. h4 {[%emt 0:02:38]} Kd7 {[%emt 0:00:59]} 33. Kd1 {[%emt 0:02:22]} Rb6 {[%emt 0:02:57]} 34. b4 {[%emt 0:04:18]} Kc6 {[%emt 0:01:45]} 35. Rbb3 {[%emt 0:01:00]} Kb5 {[%emt 0:00:28]} 36. Kc1 {[%emt 0:00:44]} Rb8 {[%emt 0:00:26]} 37. h5 {[%emt 0:01:06]} gxh5 {[%emt 0:00:21]} 38. f5 {[%emt 0:00:04]} Rg8 {[%emt 0:02:26]} 39. fxe6 {[%emt 0:01:06]} Rxg5 {[%emt 0:00:38]} 40. Kd1 {[%emt 0:00:00]} fxe6 {[%emt 0:00:00]} 41. Rf7 {[%emt 0:01:15]} Rg1+ {[%emt 0:06:48]} 42. Ke2 {[%emt 0:00:06]} Rg2+ {[%emt 0:03:42]} 43. Kd1 {[%emt 0:01:54]} d4 {[%emt 0:03:59]} 44. Rb7+ {[%emt 0:04:10]} Kc6 {[%emt 0:01:18]} 45. Rh7 {[%emt 0:00:15]} Rh2 {[%emt 0:06:12]} 46. a4 {[%emt 0:00:39]} Bf4 {[%emt 0:02:43]} 47. b5+ {[%emt 0:01:43]} Kc5 {[%emt 0:02:50]} 48. Rh8 {[%emt 0:02:43]} Ne3+ {[%emt 0:00:54]} 49. Kc1 {[%emt 0:00:20]} Nxc2+ {[%emt 0:00:25]} 50. Kb1 {[%emt 0:00:43]} Ne3 {[%emt 0:03:06]} 51. b6 {[%emt 0:00:41]} Rh1+ {[%emt 0:01:06]} 52. Ka2 {[%emt 0:00:37]} Rh2+ {[%emt 0:00:02]} 53. Kb1 {[%emt 0:00:10]} Kc4 {[%emt 0:00:21]} 54. Rb5 {[%emt 0:01:06]} Nd1 {[%emt 0:00:53]} 55. Rc8+ {[%emt 0:00:15]} Kd3 {[%emt 0:00:05]} 56. b7 {[%emt 0:00:26]} Nc3+ {[%emt 0:00:23]} 57. Rxc3+ {[%emt 0:00:08]} dxc3 {[%emt 0:00:02]} 58. b8=Q {[%emt 0:00:12]} Bxb8 {[%emt 0:00:05]} 59. Rxb8 {[%emt 0:00:14]} Rh1+ {[%emt 0:00:23]} 60. Ka2 {[%emt 0:00:05]} c2 {[%emt 0:00:09]} 61. Rd8+ {[%emt 0:00:47]} Ke2 {[%emt 0:00:11]} 0-1

[Event "FIDE WYCC Girls U14 2023"]
[Site "Montesilvano"]
[Date "2023.11.22"]
[Round "9.14"]
[White "Romany, Joy"]
[Black "Aswinika Mani R"]
[Result "1/2-1/2"]
[ECO "D45"]
[WhiteElo "1764"]
[BlackElo "1472"]
[Annotator "NA RC"]
[PlyCount "60"]
[EventDate "2023.11.13"]
[EventType "swiss"]
[EventCountry "ITA"]
[SourceTitle "playchess.com"]
[Source "ChessBase"]
[SourceQuality "1"]
[TimeControl "40/5400+30:1800+30"]

1. d4 {[%emt 0:00:26]} d5 {[%emt 0:00:14]} 2. c4 {[%emt 0:00:04]} c6 {[%emt 0:00:03]} 3. Nf3 {[%emt 0:00:10]} Nf6 {[%emt 0:00:21]} 4. Nc3 {[%emt 0:00:19]} e6 {[%emt 0:00:09]} 5. e3 {[%emt 0:00:40]} Nbd7 {[%emt 0:00:24]} 6. Qc2 {[%emt 0:00:13]} Bd6 {[%emt 0:01:08]} 7. b3 {[%emt 0:00:15]} O-O {[%emt 0:03:57]} 8. Be2 {[%emt 0:00:06]} b6 {[%emt 0:02:29]} 9. cxd5 {[%emt 0:04:06]} exd5 {[%emt 0:06:37]} 10. O-O {[%emt 0:03:25]} Bb7 {[%emt 0:00:41]} 11. Bd3 {[%emt 0:05:26]} h6 {[%emt 0:08:29]} 12. Bb2 {[%emt 0:03:43]} Rc8 {[%emt 0:02:49]} 13. Rac1 {[%emt 0:01:18]} a6 {[%emt 0:03:16]} 14. a4 {[%emt 0:06:36]} c5 {[%emt 0:02:49]} 15. Qe2 {[%emt 0:01:34]} cxd4 {[%emt 0:06:09]} 16. Nxd4 {[%emt 0:10:39]} Nc5 {[%emt 0:06:41]} 17. Bf5 {[%emt 0:00:28]} Rc7 {[%emt 0:00:36]} 18. b4 {[%emt 0:04:35]} Ncd7 {[%emt 0:05:06]} 19. Na2 {[%emt 0:02:44]} Ne5 {[%emt 0:02:03]} 20. h3 {[%emt 0:06:05]} Nc4 {[%emt 0:02:10]} 21. Bc3 {[%emt 0:01:08]} Qe7 {[%emt 0:08:23]} 22. Bd3 {[%emt 0:04:05]} g6 {[%emt 0:01:55]} 23. Nf3 {[%emt 0:05:51]} Ne4 {[%emt 0:02:51]} 24. Bd4 {[%emt 0:07:39]} b5 {[%emt 0:07:20]} 25. axb5 {[%emt 0:03:12]} axb5 {[%emt 0:00:09]} 26. Bxe4 {[%emt 0:03:12]} dxe4 {[%emt 0:05:15]} 27. Nd2 {[%emt 0:00:38]} Rfc8 {[%emt 0:04:44]} 28. Bc3 {[%emt 0:03:18]} Bd5 {[%emt 0:02:37]} 29. Ba1 {[%emt 0:08:47]} Nxd2 {[%emt 0:03:46]} 30. Qxd2 {[%emt 0:01:08]} Rxc1 {[%emt 0:05:50]} 1/2-1/2

[Event "FIDE WYCC Girls U14 2023"]
[Site "Montesilvano"]
[Date "2023.11.22"]
[Round "9.15"]
[White "Rice, Leah"]
[Black "Natoli, Alessia"]
[Result "0-1"]
[ECO "A47"]
[WhiteElo "1499"]
[BlackElo "1756"]
[Annotator "NA RC"]
[PlyCount "70"]
[EventDate "2023.11.13"]
[EventType "swiss"]
[EventCountry "ITA"]
[SourceTitle "playchess.com"]
[Source "ChessBase"]
[SourceQuality "1"]
[TimeControl "40/5400+30:1800+30"]

1. d4 {[%emt 0:00:02]} Nf6 {[%emt 0:00:12]} 2. Nf3 {[%emt 0:00:20]} b6 {[%emt 0:00:33]} 3. e3 {[%emt 0:00:45]} Bb7 {[%emt 0:00:56]} 4. Bd3 {[%emt 0:02:51]} d5 {[%emt 0:02:11]} 5. b3 {[%emt 0:01:36]} g6 {[%emt 0:02:56]} 6. Bb2 {[%emt 0:01:44]} Bg7 {[%emt 0:01:04]} 7. O-O {[%emt 0:01:10]} O-O {[%emt 0:02:06]} 8. Nbd2 {[%emt 0:02:40]} c5 {[%emt 0:04:48]} 9. Qe2 {[%emt 0:03:28]} Ne4 {[%emt 0:04:28]} 10. c4 {[%emt 0:07:00]} e6 {[%emt 0:03:07]} 11. Rab1 {[%emt 0:02:45]} Nd7 {[%emt 0:04:11]} 12. Rfd1 {[%emt 0:02:37]} Qe7 {[%emt 0:05:45]} 13. Bc2 {[%emt 0:03:42]} f5 {[%emt 0:04:58]} 14. Ne5 {[%emt 0:03:21]} cxd4 {[%emt 0:11:46]} 15. Nxd7 {[%emt 0:04:24]} Nxd2 {[%emt 0:07:46]} 16. Nxf8 {[%emt 0:03:20]} Nxb1 {[%emt 0:02:04]} 17. Nxg6 {[%emt 0:05:18]} hxg6 {[%emt 0:04:28]} 18. Bxb1 {[%emt 0:00:22]} dxe3 {[%emt 0:02:04]} 19. Bxg7 {[%emt 0:00:40]} exf2+ {[%emt 0:00:39]} 20. Kxf2 {[%emt 0:00:30]} Kxg7 {[%emt 0:01:25]} 21. cxd5 {[%emt 0:04:31]} Qc5+ {[%emt 0:04:38]} 22. Kf1 {[%emt 0:00:42]} Bxd5 {[%emt 0:01:12]} 23. Qe5+ {[%emt 0:02:07]} Kf7 {[%emt 0:01:08]} 24. Qf4 {[%emt 0:01:09]} Rh8 {[%emt 0:03:16]} 25. Rc1 {[%emt 0:00:49]} Qb5+ {[%emt 0:03:11]} 26. Kg1 {[%emt 0:00:54]} Qe2 {[%emt 0:02:32]} 27. Qg3 {[%emt 0:03:01]} Qb2 {[%emt 0:02:47]} 28. Rc7+ {[%emt 0:03:11]} Kf6 {[%emt 0:00:39]} 29. Bxf5 {[%emt 0:04:08]} Qd4+ {[%emt 0:02:05]} 30. Kf1 {[%emt 0:00:48]} exf5 {[%emt 0:02:33]} 31. Qd6+ {[%emt 0:01:30]} Kg5 {[%emt 0:01:03]} 32. h4+ {[%emt 0:00:20]} Rxh4 {[%emt 0:02:16]} 33. Qd8+ {[%emt 0:00:10]} Kg4 {[%emt 0:01:36]} 34. Rd7 {[%emt 0:02:40]} Rh1+ {[%emt 0:00:23]} 35. Ke2 {[%emt 0:00:08]} Qd1+ {[%emt 0:00:21]} 0-1

[Event "FIDE WYCC Girls U14 2023"]
[Site "Montesilvano"]
[Date "2023.11.22"]
[Round "9.16"]
[White "Diasamidze, Lulu"]
[Black "Stoll, Lucia"]
[Result "1-0"]
[ECO "C70"]
[WhiteElo "1676"]
[BlackElo "1887"]
[Annotator "NA RC"]
[PlyCount "157"]
[EventDate "2023.11.13"]
[EventType "swiss"]
[EventCountry "ITA"]
[SourceTitle "playchess.com"]
[Source "ChessBase"]
[SourceQuality "1"]
[TimeControl "40/5400+30:1800+30"]

1. e4 {[%emt 0:00:03]} e5 {[%emt 0:00:03]} 2. Nf3 {[%emt 0:00:07]} Nc6 {[%emt 0:00:04]} 3. Bb5 {[%emt 0:00:06]} a6 {[%emt 0:00:05]} 4. Ba4 {[%emt 0:00:04]} f5 {[%emt 0:00:07]} 5. Bxc6 {[%emt 0:01:31]} dxc6 {[%emt 0:00:10]} 6. exf5 {[%emt 0:04:21]} e4 {[%emt 0:01:21]} 7. Qe2 {[%emt 0:00:50]} Bxf5 {[%emt 0:05:12]} 8. Nc3 {[%emt 0:01:26]} Qe7 {[%emt 0:02:35]} 9. Nd4 {[%emt 0:00:59]} Bg6 {[%emt 0:00:25]} 10. Qc4 {[%emt 0:04:52]} O-O-O {[%emt 0:10:27]} 11. Qe6+ {[%emt 0:05:21]} Kb8 {[%emt 0:04:53]} 12. Qxe7 {[%emt 0:01:26]} Bxe7 {[%emt 0:00:58]} 13. Ne6 {[%emt 0:00:25]} Rd6 {[%emt 0:00:42]} 14. Nf4 {[%emt 0:00:19]} Bf5 {[%emt 0:07:23]} 15. b3 {[%emt 0:03:55]} g5 {[%emt 0:08:50]} 16. Nfe2 {[%emt 0:04:22]} Bf6 {[%emt 0:02:08]} 17. Bb2 {[%emt 0:02:41]} Ne7 {[%emt 0:09:40]} 18. Ba3 {[%emt 0:02:49]} Rd7 {[%emt 0:00:49]} 19. Bxe7 {[%emt 0:00:18]} Rxe7 {[%emt 0:00:37]} 20. O-O-O {[%emt 0:01:03]} Bg6 {[%emt 0:04:19]} 21. Rde1 {[%emt 0:01:20]} Rf8 {[%emt 0:03:49]} 22. Rhf1 {[%emt 0:01:57]} Ref7 {[%emt 0:02:32]} 23. Nd1 {[%emt 0:02:28]} Be5 {[%emt 0:06:48]} 24. h3 {[%emt 0:05:56]} b6 {[%emt 0:09:12]} 25. Nec3 {[%emt 0:03:12]} Bxc3 {[%emt 0:00:55]} 26. dxc3 {[%emt 0:00:39]} c5 {[%emt 0:01:29]} 27. c4 {[%emt 0:01:27]} Kb7 {[%emt 0:00:24]} 28. a4 {[%emt 0:00:33]} h5 {[%emt 0:03:12]} 29. Re3 {[%emt 0:00:35]} h4 {[%emt 0:01:15]} 30. Kd2 {[%emt 0:01:29]} Rd8+ {[%emt 0:01:16]} 31. Kc1 {[%emt 0:01:15]} Rdf8 {[%emt 0:00:28]} 32. Kd2 {[%emt 0:00:38]} Kc6 {[%emt 0:04:21]} 33. Ke1 {[%emt 0:02:18]} Kd6 {[%emt 0:01:41]} 34. Nc3 {[%emt 0:00:25]} Re7 {[%emt 0:01:40]} 35. g3 {[%emt 0:04:14]} Rf3 {[%emt 0:02:49]} 36. gxh4 {[%emt 0:00:58]} gxh4 {[%emt 0:00:12]} 37. Rg1 {[%emt 0:01:16]} Bf5 {[%emt 0:00:13]} 38. Rg5 {[%emt 0:00:47]} Re5 {[%emt 0:03:52]} 39. Rh5 {[%emt 0:00:50]} Rxe3+ {[%emt 0:01:33]} 40. fxe3 {[%emt 0:00:00]} Bxh3 {[%emt 0:00:00]} 41. Rxh4 {[%emt 0:00:26]} Bg2 {[%emt 0:00:38]} 42. Nd5 {[%emt 0:01:45]} Bf3 {[%emt 0:15:43]} 43. Rh6+ {[%emt 0:01:08]} Kd7 {[%emt 0:00:09]} 44. Rh7+ {[%emt 0:00:44]} Kd6 {[%emt 0:00:33]} 45. Nxc7 {[%emt 0:01:34]} Rg5 {[%emt 0:00:39]} 46. Nd5 {[%emt 0:02:14]} Rg2 {[%emt 0:02:20]} 47. c3 {[%emt 0:02:02]} Ke5 {[%emt 0:03:17]} 48. Re7+ {[%emt 0:02:09]} Kf5 {[%emt 0:00:18]} 49. Rf7+ {[%emt 0:00:51]} Ke5 {[%emt 0:00:25]} 50. Rb7 {[%emt 0:02:12]} Re2+ {[%emt 0:05:03]} 51. Kf1 {[%emt 0:00:10]} Rh2 {[%emt 0:00:58]} 52. Rxb6 {[%emt 0:01:11]} Rh1+ {[%emt 0:00:40]} 53. Kf2 {[%emt 0:00:09]} Rh2+ {[%emt 0:00:18]} 54. Kg3 {[%emt 0:00:23]} Rg2+ {[%emt 0:00:07]} 55. Kh3 {[%emt 0:00:06]} Rg7 {[%emt 0:02:36]} 56. Rxa6 {[%emt 0:01:27]} Kf5 {[%emt 0:00:37]} 57. Rf6+ {[%emt 0:01:22]} Kg5 {[%emt 0:00:20]} 58. Kg3 {[%emt 0:00:48]} Kh5+ {[%emt 0:00:50]} 59. Kf4 {[%emt 0:00:50]} Bd1 {[%emt 0:01:11]} 60. Rb6 {[%emt 0:03:19]} Bc2 {[%emt 0:01:09]} 61. a5 {[%emt 0:00:52]} Bd3 {[%emt 0:02:23]} 62. a6 {[%emt 0:00:27]} Bc2 {[%emt 0:00:05]} 63. Rb7 {[%emt 0:00:13]} Rg4+ {[%emt 0:00:08]} 64. Kf5 {[%emt 0:00:08]} Rg5+ {[%emt 0:00:09]} 65. Ke6 {[%emt 0:00:09]} Rg6+ {[%emt 0:00:24]} 66. Kf7 {[%emt 0:00:14]} Rxa6 {[%emt 0:00:29]} 67. b4 {[%emt 0:03:46]} Bb3 {[%emt 0:01:38]} 68. Nb6 {[%emt 0:00:57]} Kg5 {[%emt 0:01:54]} 69. bxc5 {[%emt 0:01:18]} Ra5 {[%emt 0:00:13]} 70. c6 {[%emt 0:00:16]} Rc5 {[%emt 0:00:22]} 71. c7 {[%emt 0:01:39]} Bxc4+ {[%emt 0:00:05]} 72. Nxc4 {[%emt 0:00:04]} Rxc4 {[%emt 0:00:03]} 73. Ke6 {[%emt 0:00:40]} Kg4 {[%emt 0:00:42]} 74. Kd7 {[%emt 0:00:22]} Kf3 {[%emt 0:00:48]} 75. c8=Q {[%emt 0:00:20]} Rxc8 {[%emt 0:00:04]} 76. Kxc8 {[%emt 0:00:07]} Kxe3 {[%emt 0:00:03]} 77. Re7 {[%emt 0:00:16]} Kd3 {[%emt 0:00:11]} 78. c4 {[%emt 0:00:05]} e3 {[%emt 0:00:25]} 79. c5 {[%emt 0:00:05]} 1-0

[Event "FIDE WYCC Girls U14 2023"]
[Site "Montesilvano"]
[Date "2023.11.22"]
[Round "9.17"]
[White "Alemanova, Yasmina"]
[Black "Zhang, Michelle"]
[Result "0-1"]
[ECO "D10"]
[WhiteElo "1570"]
[BlackElo "1833"]
[Annotator "NA RC"]
[PlyCount "96"]
[EventDate "2023.11.13"]
[EventType "swiss"]
[EventCountry "ITA"]
[SourceTitle "playchess.com"]
[Source "ChessBase"]
[SourceQuality "1"]
[TimeControl "40/5400+30:1800+30"]

1. d4 {[%emt 0:00:02]} d5 {[%emt 0:00:26]} 2. c4 {[%emt 0:00:03]} c6 {[%emt 0:00:37]} 3. cxd5 {[%emt 0:00:03]} cxd5 {[%emt 0:00:07]} 4. Nc3 {[%emt 0:00:04]} Nf6 {[%emt 0:01:32]} 5. Bf4 {[%emt 0:00:05]} Nc6 {[%emt 0:02:14]} 6. e3 {[%emt 0:00:06]} a6 {[%emt 0:01:30]} 7. Bd3 {[%emt 0:00:16]} Bg4 {[%emt 0:05:15]} 8. Nge2 {[%emt 0:00:06]} e6 {[%emt 0:00:32]} 9. O-O {[%emt 0:00:08]} Bd6 {[%emt 0:01:48]} 10. Bg5 {[%emt 0:01:09]} h6 {[%emt 0:02:25]} 11. Bh4 {[%emt 0:00:37]} g5 {[%emt 0:08:23]} 12. Bg3 {[%emt 0:00:24]} h5 {[%emt 0:05:07]} 13. f3 {[%emt 0:05:38]} h4 {[%emt 0:08:19]} 14. Bxd6 {[%emt 0:04:53]} Qxd6 {[%emt 0:00:52]} 15. e4 {[%emt 0:02:01]} dxe4 {[%emt 0:02:47]} 16. Nxe4 {[%emt 0:00:24]} Nxe4 {[%emt 0:01:23]} 17. Bxe4 {[%emt 0:02:44]} Bh5 {[%emt 0:04:47]} 18. Rc1 {[%emt 0:05:13]} O-O {[%emt 0:07:49]} 19. Qd2 {[%emt 0:02:59]} f6 {[%emt 0:03:12]} 20. Rfd1 {[%emt 0:10:11]} Rad8 {[%emt 0:04:02]} 21. a3 {[%emt 0:08:55]} Bf7 {[%emt 0:05:38]} 22. Bxc6 {[%emt 0:06:26]} bxc6 {[%emt 0:00:11]} 23. Qc3 {[%emt 0:00:37]} Be8 {[%emt 0:02:30]} 24. Qa5 {[%emt 0:01:05]} Qb8 {[%emt 0:05:43]} 25. b4 {[%emt 0:01:32]} Qc8 {[%emt 0:03:14]} 26. Rc5 {[%emt 0:02:56]} h3 {[%emt 0:04:22]} 27. f4 {[%emt 0:03:38]} e5 {[%emt 0:02:21]} 28. f5 {[%emt 0:11:17]} Bh5 {[%emt 0:02:37]} 29. Rc2 {[%emt 0:01:48]} Qxf5 {[%emt 0:02:03]} 30. Rcd2 {[%emt 0:02:27]} Bxe2 {[%emt 0:01:02]} 31. Rxe2 {[%emt 0:00:03]} Qg4 {[%emt 0:01:07]} 32. Qxa6 Rxd4 {[%emt 0:02:19]} 33. Rde1 {[%emt 0:01:14]} Qd7 {[%emt 0:06:35]} 34. Qa4 {[%emt 0:00:53]} Rd3 {[%emt 0:01:21]} 35. Re4 {[%emt 0:00:58]} hxg2 {[%emt 0:00:52]} 36. R4e2 {[%emt 0:01:43]} Qd4+ {[%emt 0:00:33]} 37. Kxg2 {[%emt 0:00:08]} Qg4+ {[%emt 0:00:25]} 38. Kh1 {[%emt 0:00:47]} Qf3+ {[%emt 0:00:20]} 39. Kg1 {[%emt 0:00:12]} Rd4 {[%emt 0:02:04]} 40. Rg2 {[%emt 0:00:00]} Rfd8 {[%emt 0:00:00]} 41. Qc2 {[%emt 0:01:59]} Kg7 {[%emt 0:03:43]} 42. Rg3 {[%emt 0:00:18]} Qd5 {[%emt 0:03:49]} 43. Qf5 {[%emt 0:06:56]} e4 {[%emt 0:05:58]} 44. Qf2 {[%emt 0:01:05]} Rd2 {[%emt 0:03:00]} 45. Qe3 {[%emt 0:04:18]} Qd4 {[%emt 0:04:00]} 46. h4 {[%emt 0:00:27]} Rd3 {[%emt 0:01:40]} 47. Qxd4 {[%emt 0:00:05]} Rxg3+ {[%emt 0:00:14]} 48. Kf2 {[%emt 0:00:25]} Rf3+ {[%emt 0:00:14]} 0-1

[Event "FIDE WYCC Girls U14 2023"]
[Site "Montesilvano"]
[Date "2023.11.22"]
[Round "9.18"]
[White "Li Chen, Helena Joana"]
[Black "Zerarga, Imene"]
[Result "1/2-1/2"]
[ECO "B75"]
[WhiteElo "1799"]
[BlackElo "1514"]
[Annotator "NA RC"]
[PlyCount "75"]
[EventDate "2023.11.13"]
[EventType "swiss"]
[EventCountry "ITA"]
[SourceTitle "playchess.com"]
[Source "ChessBase"]
[SourceQuality "1"]
[TimeControl "40/5400+30:1800+30"]

1. e4 {[%emt 0:00:01]} c5 {[%emt 0:00:11]} 2. Nf3 {[%emt 0:00:02]} d6 {[%emt 0:00:10]} 3. d4 {[%emt 0:00:05]} cxd4 {[%emt 0:00:07]} 4. Nxd4 {[%emt 0:00:03]} Nf6 {[%emt 0:00:11]} 5. Nc3 {[%emt 0:00:07]} g6 {[%emt 0:00:05]} 6. Be3 {[%emt 0:00:04]} Bg7 {[%emt 0:00:10]} 7. f3 {[%emt 0:00:05]} Nc6 {[%emt 0:00:30]} 8. Qd2 {[%emt 0:00:07]} Bd7 {[%emt 0:00:18]} 9. O-O-O {[%emt 0:00:29]} Rc8 {[%emt 0:02:45]} 10. Kb1 {[%emt 0:03:03]} h5 {[%emt 0:05:01]} 11. h3 {[%emt 0:00:09]} a6 {[%emt 0:07:26]} 12. Be2 {[%emt 0:04:35]} h4 {[%emt 0:00:31]} 13. Rhe1 {[%emt 0:00:13]} b5 {[%emt 0:02:02]} 14. Nxc6 {[%emt 0:06:45]} Rxc6 {[%emt 0:02:47]} 15. Bd4 {[%emt 0:03:27]} Bh6 {[%emt 0:13:39]} 16. Qd3 {[%emt 0:00:13]} e5 {[%emt 0:01:10]} 17. Bf2 {[%emt 0:06:43]} Be6 {[%emt 0:02:42]} 18. Nxb5 {[%emt 0:05:26]} axb5 {[%emt 0:04:33]} 19. Qxb5 {[%emt 0:00:09]} Qa8 {[%emt 0:02:08]} 20. b3 {[%emt 0:07:58]} O-O {[%emt 0:01:26]} 21. Qb4 {[%emt 0:03:06]} Rb8 {[%emt 0:05:13]} 22. Bb5 {[%emt 0:00:11]} Ra6 {[%emt 0:02:29]} 23. a4 {[%emt 0:01:21]} Bd7 {[%emt 0:08:56]} 24. c4 {[%emt 0:01:08]} Bxb5 {[%emt 0:00:56]} 25. cxb5 {[%emt 0:00:16]} d5 {[%emt 0:02:41]} 26. Bc5 {[%emt 0:14:11]} Re6 {[%emt 0:05:56]} 27. exd5 {[%emt 0:11:33]} Nxd5 {[%emt 0:00:08]} 28. Qc4 {[%emt 0:00:07]} Nf4 {[%emt 0:01:52]} 29. Rd2 {[%emt 0:03:34]} Nxh3 {[%emt 0:02:24]} 30. Rd7 {[%emt 0:01:12]} Nf4 {[%emt 0:00:45]} 31. Rxe5 {[%emt 0:00:58]} Rd8 {[%emt 0:00:59]} 32. Rxe6 {[%emt 0:06:42]} Nxe6 {[%emt 0:00:42]} 33. Rd6 {[%emt 0:01:33]} Rc8 {[%emt 0:05:04]} 34. Rxe6 {[%emt 0:02:45]} fxe6 {[%emt 0:02:14]} 35. Qxe6+ {[%emt 0:00:06]} Kh7 {[%emt 0:00:12]} 36. Qe7+ {[%emt 0:00:12]} Kg8 {[%emt 0:02:52]} 37. Qe6+ {[%emt 0:00:07]} Kh7 {[%emt 0:00:07]} 38. Qe7+ {[%emt 0:00:03]} 1/2-1/2

[Event "FIDE WYCC Girls U14 2023"]
[Site "Montesilvano"]
[Date "2023.11.22"]
[Round "9.19"]
[White "Haapsal, Maria Ioanna"]
[Black "Mueller, Riyanna"]
[Result "0-1"]
[ECO "B01"]
[WhiteElo "1597"]
[BlackElo "1754"]
[Annotator "NA RC"]
[PlyCount "96"]
[EventDate "2023.11.13"]
[EventType "swiss"]
[EventCountry "ITA"]
[SourceTitle "playchess.com"]
[Source "ChessBase"]
[SourceQuality "1"]
[TimeControl "40/5400+30:1800+30"]

1. e4 {[%emt 0:00:18]} d5 {[%emt 0:00:08]} 2. exd5 {[%emt 0:00:24]} Qxd5 {[%emt 0:00:07]} 3. Nc3 {[%emt 0:00:08]} Qd6 {[%emt 0:00:09]} 4. d4 {[%emt 0:00:26]} Nf6 {[%emt 0:00:14]} 5. Nf3 {[%emt 0:00:39]} a6 {[%emt 0:00:17]} 6. g3 {[%emt 0:00:37]} Bg4 {[%emt 0:00:25]} 7. h3 {[%emt 0:01:18]} Bxf3 {[%emt 0:00:16]} 8. Qxf3 {[%emt 0:00:17]} c6 {[%emt 0:00:34]} 9. Be3 {[%emt 0:00:44]} e6 {[%emt 0:00:36]} 10. O-O-O {[%emt 0:01:39]} Nbd7 {[%emt 0:00:34]} 11. g4 {[%emt 0:18:40]} Nb6 {[%emt 0:02:09]} 12. a3 {[%emt 0:03:46]} Be7 {[%emt 0:04:33]} 13. Bf4 {[%emt 0:03:14]} Qd8 {[%emt 0:00:40]} 14. h4 {[%emt 0:04:55]} Nfd5 {[%emt 0:03:27]} 15. Nxd5 {[%emt 0:05:01]} cxd5 {[%emt 0:01:03]} 16. g5 {[%emt 0:02:48]} Rc8 {[%emt 0:09:46]} 17. Be5 {[%emt 0:04:13]} O-O {[%emt 0:01:49]} 18. g6 fxg6 {[%emt 0:03:05]} 19. Qg4 {[%emt 0:17:48]} Rc6 {[%emt 0:00:58]} 20. f4 {[%emt 0:05:03]} Nd7 {[%emt 0:03:13]} 21. h5 {[%emt 0:03:23]} Nxe5 {[%emt 0:01:02]} 22. dxe5 {[%emt 0:00:48]} Rxf4 {[%emt 0:00:17]} 23. Qg2 {[%emt 0:05:06]} g5 {[%emt 0:03:57]} 24. Bd3 {[%emt 0:04:03]} Qf8 {[%emt 0:02:40]} 25. Rhf1 {[%emt 0:05:12]} Bc5 {[%emt 0:16:21]} 26. Rde1 {[%emt 0:06:59]} Rxf1 {[%emt 0:07:06]} 27. Rxf1 {[%emt 0:00:31]} Be3+ {[%emt 0:00:10]} 28. Kb1 {[%emt 0:00:13]} Bf4 {[%emt 0:00:08]} 29. Qg4 {[%emt 0:01:58]} Rb6 {[%emt 0:03:18]} 30. Ka2 {[%emt 0:01:05]} Qb8 {[%emt 0:01:43]} 31. h6 {[%emt 0:01:00]} Qxe5 {[%emt 0:01:28]} 32. Rb1 {[%emt 0:01:34]} gxh6 {[%emt 0:01:03]} 33. Qh5 {[%emt 0:00:25]} Qf6 {[%emt 0:02:13]} 34. Qe8+ {[%emt 0:00:17]} Kg7 {[%emt 0:00:31]} 35. Qd7+ {[%emt 0:02:03]} Qf7 {[%emt 0:00:15]} 36. Qxf7+ {[%emt 0:00:50]} Kxf7 {[%emt 0:00:06]} 37. Bxh7 {[%emt 0:00:08]} h5 {[%emt 0:01:44]} 38. Bd3 {[%emt 0:00:44]} h4 {[%emt 0:00:47]} 39. Rh1 {[%emt 0:01:00]} e5 {[%emt 0:00:35]} 40. Bf5 {[%emt 0:00:00]} Kf6 {[%emt 0:00:00]} 41. Bg4 {[%emt 0:01:02]} e4 {[%emt 0:01:13]} 42. Kb1 {[%emt 0:01:27]} d4 {[%emt 0:01:30]} 43. Re1 {[%emt 0:00:58]} Ke5 {[%emt 0:02:13]} 44. Bf3 {[%emt 0:00:31]} e3 {[%emt 0:00:16]} 45. Re2 {[%emt 0:01:04]} Bg3 {[%emt 0:00:37]} 46. c3 {[%emt 0:00:45]} Kf4 {[%emt 0:00:12]} 47. Bd5 {[%emt 0:00:48]} d3 {[%emt 0:00:24]} 48. Rg2 {[%emt 0:00:17]} e2 {[%emt 0:00:15]} 0-1